bitfinex/quotes_ETHUSD_20241106
["timestamp","ask_amount","ask_price","bid_price","bid_amount"]
[1730907128799,0.01,2653.9,2652.9,0.797]
[1730907128998,0.02,2653.7,2652.9,0.797]
[1730907129688,0.01,2653.5,2652.9,0.797]
[1730907130449,0.01,2653.3,2652.9,0.797]
[1730907130857,0.01,2653.3,2652.8,0.1282881]
[1730907131053,0.01,2653.1,2652.8,0.1282881]
[1730907131480,0.01,2653.5,2652.8,0.1282881]
[1730907131682,0.01,2653.9,2652.9,0.87238677]
[1730907131972,0.01,2654.2,2652.9,0.87238677]
[1730907131973,0.01,2654.2,2653.3,0.7619]
[1730907132643,0.01,2654.1,2653.3,0.7619]
[1730907132981,0.01,2654.3,2653.3,0.7619]
[1730907133194,0.01,2654.6,2653.3,3.7619]
[1730907133343,0.02,2654.6,2653.5,0.8177]
[1730907133758,0.01,2654.6,2653.6,0.07535561]
[1730907133971,0.01,2654.4,2653.5,0.8177]
[1730907134165,0.01,2654.4,2653.6,0.07536123]
[1730907134391,0.01,2654.4,2653.5,0.8177]
[1730907134392,0.01,2654.0,2653.5,0.8177]
[1730907134600,0.01,2653.8,2653.1,0.7626]
[1730907134987,0.01,2653.6,2653.1,0.7626]
[1730907135710,0.02,2653.8,2653.1,0.7626]
[1730907135908,0.01,2653.6,2653.1,0.7626]
[1730907136395,0.01,2653.6,2652.8,0.18483952]
[1730907136597,0.01,2653.4,2652.9,0.7591]
[1730907136906,0.01,2653.6,2652.9,0.7591]
[1730907138870,0.01,2653.3,2652.9,0.7591]
[1730907139401,0.01,2653.5,2652.9,0.7591]
[1730907139607,0.01,2653.3,2652.9,0.7591]
[1730907140100,0.01,2653.7,2652.9,0.7591]
[1730907140402,0.01,2654.0,2653.0,0.07537979]
[1730907140604,0.01,2654.0,2653.0,0.6702797]
[1730907141074,0.8308,2654.4,2653.2,4.98623121]
[1730907141261,3.76648,2655.0,2653.2,4.98623121]
[1730907141262,0.8408,2654.7,2653.4,0.7505]
[1730907141486,0.8408,2654.7,2653.6,0.7505]
[1730907141832,0.01,2654.6,2653.7,0.07535088]
[1730907142129,0.01,2654.6,2653.6,0.7505]
[1730907142277,0.8408,2654.7,2653.7,1.33130864]
[1730907143327,0.8408,2655.0,2653.9,0.7505]
[1730907143628,3.33,2655.2,2653.7,4.33130864]
[1730907143629,3.33,2655.2,2654.1,0.7505]
[1730907143828,0.01,2655.4,2654.3,3.8234]
[1730907143982,0.01,2655.4,2654.4,0.07533443]
[1730907144183,0.01,2655.4,2654.3,3.8234]
[1730907144426,0.8435,2655.6,2654.6,0.7867]
[1730907144588,0.8435,2655.6,2654.6,12.9667]
[1730907144790,0.8335,2655.6,2654.6,12.9667]
[1730907145100,0.8104,2656.6,2655.3,3.8041]
[1730907145303,0.8104,2656.6,2655.4,12.25530755]
[1730907145510,3.33,2656.8,2655.7,4.98623121]
[1730907145828,3.33,2656.8,2655.9,0.8184]
[1730907146352,7.09394,2656.8,2655.9,0.8184]
[1730907146636,3.33,2656.8,2655.9,0.8184]
[1730907146781,0.01,2657.0,2656.1,4.98623121]
[1730907146987,3.78365,2657.0,2655.9,0.8184]
[1730907147194,0.02,2657.0,2655.9,0.8184]
[1730907147393,0.01,2656.5,2655.9,0.8184]
[1730907147793,0.01,2656.5,2655.9,0.8168957]
[1730907148224,0.01,2656.5,2655.8,12.18]
[1730907148225,4.59396,2656.5,2655.8,12.18]
[1730907148379,0.01,2656.2,2655.4,3.0]
[1730907148582,0.01,2656.2,2655.4,3.07530994]
[1730907148810,0.479396,2656.4,2655.4,3.0]
[1730907149014,0.01,2656.5,2655.5,0.79862312]
[1730907149242,0.8296,2656.8,2655.6,12.25529942]
[1730907149533,0.02,2656.4,2655.6,12.18]
[1730907149889,3.77451,2656.4,2655.6,12.18]
[1730907150089,0.01,2656.2,2655.6,12.18]
[1730907150342,0.02,2656.4,2655.6,12.18]
[1730907150638,0.01,2656.3,2655.1,3.0]
[1730907150793,0.01,2656.3,2655.3,0.7598]
[1730907151138,0.01,2656.3,2655.4,0.07530666]
[1730907151690,0.01,2656.3,2655.3,0.7598]
[1730907151990,0.01,2656.1,2655.3,0.7598]
[1730907152221,0.01,2656.2,2655.4,0.07531546]
[1730907152385,0.02,2656.6,2655.4,0.07531546]
[1730907152591,0.02,2656.6,2655.4,3.65745013]
[1730907152931,0.01,2656.6,2655.4,3.65745013]
[1730907153133,0.8196,2656.8,2655.7,4.98623121]
[1730907153303,0.02,2657.0,2655.8,3.8266]
[1730907153505,0.02,2657.0,2655.8,5.92588312]
[1730907153832,0.01,2656.8,2655.8,5.92588312]
[1730907153986,0.01,2656.8,2655.9,0.07529266]
[1730907154191,0.01,2656.6,2655.8,0.8266]
[1730907154405,0.02,2656.4,2655.7,12.18]
[1730907154595,0.476026,2656.4,2655.7,12.18]
[1730907155246,0.01,2656.2,2655.7,12.18]
[1730907155389,0.01,2656.0,2655.0,1.31172312]
[1730907155588,0.8174,2655.9,2655.0,1.31172312]
[1730907155893,0.8174,2655.9,2655.1,1.42448747]
[1730907156694,0.8174,2656.2,2655.1,4.42448747]
[1730907156899,0.8065,2656.5,2655.4,3.7746]
[1730907157204,0.8165,2656.8,2655.8,3.7746]
[1730907157423,0.8165,2656.8,2655.9,12.25529209]
[1730907157706,0.8165,2656.8,2655.9,12.18]
[1730907157922,0.8165,2656.8,2656.0,0.07529207]
[1730907158126,0.01,2656.6,2655.9,14.27408312]
[1730907158432,0.02,2656.6,2655.9,12.18]
[1730907159301,0.02,2656.6,2655.8,0.7746]
[1730907159498,0.02,2656.6,2655.4,12.18]
[1730907159499,0.8328,2656.2,2655.4,0.7516]
[1730907159994,0.8228,2656.2,2655.5,0.07530813]
[1730907160232,0.8328,2656.2,2655.5,0.07530813]
[1730907160416,0.8328,2656.2,2655.4,0.7516]
[1730907160613,0.8328,2656.2,2655.5,0.07530781]
[1730907160835,0.8228,2656.2,2655.4,0.7516]
[1730907161202,4.60763,2656.2,2655.0,0.49862312]
[1730907161401,0.8428,2656.2,2655.1,1.29858543]
[1730907162433,0.8428,2656.2,2655.2,0.0753094]
[1730907162829,0.8228,2656.2,2655.3,4.98623121]
[1730907163019,0.8039,2656.5,2655.5,0.7763]
[1730907163731,0.79,2656.9,2655.7,4.98623121]
[1730907163957,0.79,2657.2,2656.1,4.98623121]
[1730907164261,0.01,2657.5,2656.6,3.0]
[1730907164463,0.01,2657.5,2656.7,0.79862312]
[1730907164767,0.79,2658.2,2657.0,0.7715]
[1730907164933,0.79,2658.2,2657.3,4.98623121]
[1730907165138,0.79,2658.2,2657.4,0.49862312]
[1730907165139,0.01,2658.1,2657.4,0.49862312]
[1730907165337,0.02,2658.1,2657.1,12.18]
[1730907165937,0.01,2657.9,2657.1,12.18]
[1730907166423,0.02,2658.1,2657.2,0.07525875]
[1730907166654,0.01,2657.9,2657.1,12.18]
[1730907167168,0.01,2657.9,2657.2,0.07525871]
[1730907167463,0.02,2658.1,2657.2,0.07525867]
[1730907167777,0.01,2658.1,2657.2,1.37793454]
[1730907168363,0.01,2658.0,2657.2,1.37793454]
[1730907168575,0.01,2658.0,2657.1,12.18]
[1730907168860,0.01,2658.0,2657.2,0.07525827]
[1730907169021,0.01,2658.0,2657.2,12.25525827]
[1730907169225,0.01,2658.1,2657.2,12.18]
[1730907169559,0.79,2658.2,2657.3,0.07525816]
[1730907169745,0.79,2658.2,2657.2,13.47515]
[1730907169921,0.79,2658.2,2657.3,4.98623121]
[1730907170551,0.8,2658.2,2657.3,3.0]
[1730907170728,0.01,2658.0,2657.2,12.18]
[1730907171280,0.01,2657.6,2656.8,12.18]
[1730907171457,0.01,2657.2,2656.9,12.18]
[1730907171625,0.8044,2657.1,2656.9,12.18]
[1730907172255,0.8044,2657.1,2656.3,0.7636]
[1730907172764,0.8044,2657.1,2656.3,3.7636]
[1730907173866,0.01,2657.0,2656.3,0.83887816]
[1730907174065,0.8044,2657.1,2656.3,0.7636]
[1730907174360,0.8044,2657.1,2656.4,0.07528197]
[1730907174664,0.8144,2657.1,2656.0,0.87157626]
[1730907174868,0.8044,2657.1,2656.0,0.87157626]
[1730907175205,0.8144,2657.1,2656.0,0.87157626]
[1730907175375,0.8044,2657.1,2656.0,5.1126727]
[1730907175527,0.8144,2657.1,2656.1,3.51126727]
[1730907175727,0.8044,2657.1,2656.1,3.51126727]
[1730907175923,0.8144,2657.1,2656.1,3.51126727]
[1730907177183,0.01,2657.2,2656.5,3.0]
[1730907177490,0.01,2657.7,2657.0,4.24109644]
[1730907177491,0.817,2657.7,2657.0,4.24109644]
[1730907178065,0.817,2657.7,2657.1,0.07525887]
[1730907178272,0.817,2657.7,2657.0,4.24109644]
[1730907178965,0.817,2657.7,2656.7,3.0]
[1730907179671,0.02,2657.6,2656.5,0.7815]
[1730907179983,0.7773,2657.3,2656.2,5.07189644]
[1730907180287,0.01,2657.0,2656.2,5.50165371]
[1730907180582,0.8244,2656.9,2655.8,5.04489644]
[1730907180953,0.01,2656.8,2655.8,5.04489644]
[1730907181279,0.01,2656.8,2653.8,0.76917497]
[1730907181280,0.8295,2656.5,2655.4,4.24109644]
[1730907182092,0.02,2656.4,2655.1,4.24109644]
[1730907182387,0.01,2656.2,2655.2,12.68163964]
[1730907182716,0.7898,2656.1,2655.2,12.68163964]
[1730907183277,0.7898,2656.1,2655.3,3.0]
[1730907183776,0.7898,2656.1,2655.4,0.07530587]
[1730907183973,0.7898,2656.1,2655.4,1.57569455]
[1730907184137,0.7898,2656.1,2655.4,1.65100043]
[1730907184640,0.8139,2656.4,2655.5,4.24109644]
[1730907184944,0.8139,2656.4,2655.6,3.07529585]
[1730907185144,0.8139,2656.4,2655.6,3.0]
[1730907185369,0.8139,2656.4,2655.6,3.8816791]
[1730907185877,0.01,2656.3,2655.6,3.0]
[1730907186055,0.01,2656.3,2655.6,3.07529998]
[1730907186265,0.01,2656.3,2655.6,0.07529998]
[1730907186465,0.01,2655.6,2654.9,12.18]
[1730907186674,0.8074,2655.5,2654.7,12.18]
[1730907186878,0.8074,2655.5,2654.3,4.24109644]
[1730907186879,0.01,2655.3,2654.4,12.18]
[1730907187083,0.8174,2655.2,2654.3,16.42109644]
[1730907187390,1.276734,2655.2,2654.0,12.18]
[1730907187601,0.8174,2655.2,2654.0,12.18]
[1730907187908,0.01,2655.1,2654.0,12.18]
[1730907188252,0.01,2654.9,2654.1,12.18]
[1730907188478,0.01,2655.1,2654.1,13.90936222]
[1730907188703,0.02,2655.1,2654.1,13.90936222]
[1730907188859,0.8074,2655.2,2654.6,4.24109644]
[1730907189596,0.8074,2655.2,2654.4,3.0]
[1730907189762,0.8174,2655.2,2654.4,4.89270423]
[1730907190496,0.8174,2655.2,2654.4,3.0]
[1730907190997,0.8174,2655.2,2654.3,12.18]
[1730907191300,0.01,2655.0,2654.3,12.18]
[1730907192166,0.01,2655.1,2654.4,0.07533989]
[1730907192371,0.8174,2655.2,2654.4,0.07533989]
[1730907192567,0.8174,2655.2,2654.4,4.72425305]
[1730907192781,0.01,2654.7,2654.3,12.18]
[1730907192967,0.01,2654.7,2654.0,12.18]
[1730907193169,0.01,2654.5,2654.0,12.18]
[1730907193397,0.8227,2654.4,2654.1,12.18]
[1730907193610,0.01,2654.2,2653.2,12.24507972]
[1730907193772,0.01,2654.2,2653.2,13.98233703]
[1730907193974,0.01,2654.2,2653.3,0.07536591]
[1730907194367,0.8227,2653.9,2653.3,0.07536591]
[1730907194573,0.8227,2653.9,2653.2,13.98233703]
[1730907195294,0.8227,2653.9,2653.2,12.18]
[1730907195768,0.01,2653.6,2652.8,12.3082881]
[1730907195973,0.7972,2653.5,2652.8,0.1282881]
[1730907196170,0.01,2653.4,2652.8,0.1282881]
[1730907196505,0.7972,2653.5,2652.8,0.1282881]
[1730907196717,0.01,2653.2,2652.8,0.1282881]
[1730907198204,0.825,2652.9,2652.8,0.1282881]
[1730907199373,5.14445,2652.9,2652.8,0.1282881]
[1730907199570,9.037834,2652.9,2652.8,0.1282881]
[1730907200010,1.718384,2652.9,2652.8,0.1282881]
[1730907200222,0.825,2652.9,2652.8,0.1282881]
[1730907200474,0.825,2652.9,2650.0,24.98719057]
[1730907200475,0.01,2651.4,2650.0,24.98719057]
[1730907200823,0.8153,2651.7,2650.8,4.98719057]
[1730907201001,0.01,2652.0,2651.2,4.98719057]
[1730907201528,0.01,2652.0,2651.3,0.07542225]
[1730907201910,0.01,2652.0,2651.2,4.98719057]
[1730907202131,0.01,2652.0,2651.3,0.07541853]
[1730907203139,0.01,2652.0,2651.2,4.98719057]
[1730907203431,0.789,2652.1,2651.3,3.5741336]
[1730907203630,0.799,2652.1,2651.3,3.49871906]
[1730907203927,0.789,2652.1,2651.3,3.49871906]
[1730907204235,0.01,2652.4,2651.4,0.84859096]
[1730907204389,0.82030008,2652.5,2651.6,4.98719057]
[1730907204584,0.82030008,2652.5,2651.7,0.0754088]
[1730907204826,0.01,2652.4,2651.6,5.77819057]
[1730907205028,0.01,2652.4,2651.7,0.65322375]
[1730907205195,0.7603,2652.5,2651.7,0.65322375]
[1730907205407,0.01,2652.8,2652.0,4.98719057]
[1730907205615,0.07000008,2652.8,2652.1,0.57411965]
[1730907205834,0.07000008,2652.8,2651.7,15.75781906]
[1730907206003,0.07000008,2652.8,2651.8,3.0]
[1730907209323,0.02,2652.8,2652.0,0.54127435]
[1730907209617,0.07000008,2652.8,2652.0,0.54127435]
[1730907210748,0.07000008,2652.8,2652.1,12.18]
[1730907211061,0.53055209,2652.8,2652.1,12.18]
[1730907211261,0.53055209,2652.8,2651.8,3.0]
[1730907211262,0.01,2652.3,2651.8,12.18]
[1730907211461,0.02,2652.1,2651.5,12.18]
[1730907211750,0.02,2652.1,2650.9,12.9512]
[1730907211948,0.02,2652.1,2651.0,13.55292]
[1730907212308,0.756,2652.0,2651.0,13.55292]
[1730907212534,0.07000008,2651.9,2651.0,13.55292]
[1730907212812,0.01,2651.8,2651.1,0.07542439]
[1730907213242,0.06000008,2651.9,2651.1,0.07542439]
[1730907213718,0.06000008,2651.9,2651.0,12.18]
[1730907213919,0.01,2651.7,2651.1,3.0]
[1730907214234,0.01,2651.5,2650.9,12.18]
[1730907214422,0.01,2651.4,2650.5,12.18]
[1730907214621,0.01,2651.4,2650.6,12.18]
[1730907214622,0.01,2651.3,2650.6,12.18]
[1730907214962,0.06000008,2651.3,2650.6,12.18]
[1730907215165,0.01,2651.1,2650.6,12.18]
[1730907215363,0.01,2651.1,2650.2,0.8957881]
[1730907215364,0.02,2650.9,2650.5,12.18]
[1730907215522,0.02,2650.9,2650.2,0.1282881]
[1730907215523,0.7728,2650.8,2650.3,12.18]
[1730907215937,0.01,2650.6,2650.2,0.1282881]
[1730907216222,0.02,2650.3,2650.2,0.1282881]
[1730907216701,0.8455,2650.3,2650.2,0.1282881]
[1730907216844,1.68965501,2650.3,2650.2,0.1282881]
[1730907217071,0.8255,2650.3,2650.2,0.1282881]
[1730907217365,0.06000008,2650.5,2650.2,0.1282881]
[1730907217726,0.06000008,2650.6,2650.2,0.1282881]
[1730907217962,0.8274,2650.8,2650.2,0.1282881]
[1730907218169,0.01,2651.7,2650.3,0.07545415]
[1730907218170,0.01,2651.0,2650.3,0.07545415]
[1730907218333,0.8174,2651.1,2650.3,0.07544389]
[1730907218533,0.8174,2651.1,2650.3,0.97458763]
[1730907218734,0.8174,2651.1,2650.3,0.89914374]
[1730907218977,0.01,2650.6,2650.2,0.1282881]
[1730907219267,0.06000008,2650.6,2650.2,0.1282881]
[1730907219468,0.01,2650.3,2650.2,0.1282881]
[1730907219781,0.8188,2650.3,2650.2,0.1282881]
[1730907220313,0.8088,2650.3,2650.2,0.1282881]
[1730907221842,4.58195,2650.3,2650.2,0.1282881]
[1730907222030,1.28399501,2650.3,2650.2,0.1282881]
[1730907222230,0.8188,2650.3,2650.2,0.1282881]
[1730907222661,4.59195,2650.3,2650.2,0.1282881]
[1730907223026,0.8188,2650.3,2650.2,0.1282881]
[1730907223526,0.86880008,2650.3,2650.2,0.1282881]
[1730907224154,4.64195008,2650.3,2650.2,0.1282881]
[1730907224367,5.10714509,2650.3,2650.2,0.1282881]
[1730907224942,7.56194,2650.1,2648.5,0.59076624]
[1730907225146,7.56194,2650.1,2648.0,5.00100544]
[1730907225147,8.16194008,2650.1,2648.0,5.00100544]
[1730907225484,8.11194,2650.1,2648.5,0.7822]
[1730907225624,7.56934,2650.1,2650.0,3.1671]
[1730907225827,9.5121881,2650.1,2650.0,3.1671]
[1730907226077,9.46218802,2650.1,2650.0,3.1671]
[1730907226379,9.46218802,2650.1,2650.0,2.3338]
[1730907226679,0.1076,2649.4,2648.5,0.07548973]
[1730907226834,0.0976,2649.4,2648.5,0.07548973]
[1730907227238,0.0976,2649.4,2648.5,3.0]
[1730907227458,0.0976,2649.4,2648.6,0.37549247]
[1730907227674,0.8047,2648.5,2647.6,0.1282881]
[1730907227920,0.01,2648.4,2647.6,0.1282881]
[1730907228067,3.83594008,2648.4,2647.6,0.1282881]
[1730907228409,0.01,2648.0,2647.6,0.0782881]
[1730907228592,0.8361,2648.3,2647.6,0.0782881]
[1730907228965,0.8261,2648.3,2647.6,0.0782881]
[1730907229362,0.8261,2648.3,2647.6,0.8752881]
[1730907229602,0.7847,2648.7,2647.7,0.07552416]
[1730907229821,0.7847,2648.7,2647.7,5.00100544]
[1730907229967,0.7847,2648.7,2647.8,0.58762935]
[1730907230164,0.7847,2648.7,2647.9,0.07551619]
[1730907230412,0.7847,2648.7,2647.6,0.8752881]
[1730907230779,0.01,2648.6,2647.6,0.8752881]
[1730907230984,0.06000008,2648.6,2647.7,0.07551314]
[1730907231276,0.06000008,2648.6,2647.7,0.07551877]
[1730907231490,0.01,2648.6,2647.7,0.07551877]
[1730907232485,0.01,2648.2,2647.6,0.0782881]
[1730907232808,0.90431354,2648.5,2647.6,0.8337881]
[1730907233012,0.01,2648.4,2647.7,0.07552244]
[1730907233531,0.7999,2648.5,2647.7,0.07552244]
[1730907233709,0.01,2648.4,2647.6,0.8337881]
[1730907233914,0.01,2648.0,2647.6,0.0782881]
[1730907234248,0.01,2648.2,2647.6,0.0782881]
[1730907234383,0.11440316,2648.4,2647.7,0.07553337]
[1730907234791,0.01,2648.2,2647.6,0.0782881]
[1730907234998,0.01,2648.4,2647.6,0.0782881]
[1730907235192,0.01,2648.3,2647.6,0.0782881]
[1730907235436,0.01,2648.1,2647.6,0.0782881]
[1730907235635,0.7941,2647.9,2647.6,0.0782881]
[1730907235786,0.8041,2647.9,2647.6,0.0782881]
[1730907236835,0.01,2648.1,2647.6,0.0782881]
[1730907237033,0.87632353,2648.3,2647.6,0.0782881]
[1730907237034,0.01,2647.9,2647.6,0.0782881]
[1730907237524,0.7919,2648.3,2647.6,0.0782881]
[1730907238024,0.7819,2648.3,2647.6,0.0782881]
[1730907238329,0.7819,2648.3,2647.6,0.8414881]
[1730907238532,0.91680822,2648.6,2647.7,0.07551972]
[1730907238705,0.8124,2648.6,2647.7,3.07551972]
[1730907238884,0.8124,2648.6,2647.8,0.89180133]
[1730907239087,0.8124,2648.6,2647.9,0.07551102]
[1730907239631,0.01,2649.3,2648.1,3.0]
[1730907239788,0.01,2649.0,2648.0,0.8266]
[1730907240217,0.01,2649.2,2648.0,0.8266]
[1730907240429,0.02,2649.2,2648.1,0.07550153]
[1730907240635,0.02,2649.2,2648.0,0.8266]
[1730907241723,0.8124,2649.5,2648.4,5.00100544]
[1730907241924,0.8124,2649.5,2648.6,0.7716]
[1730907242125,0.8224,2649.5,2648.7,0.07548646]
[1730907242423,0.01,2649.8,2648.8,0.55]
[1730907242786,0.01,2649.8,2648.7,0.55]
[1730907242994,0.01,2649.8,2648.7,0.97717005]
[1730907243388,0.01,2649.8,2648.9,0.55]
[1730907243929,0.01,2649.9,2648.8,0.55]
[1730907244524,0.01,2649.9,2648.9,0.07547653]
[1730907245001,0.01,2649.9,2648.8,0.55]
[1730907245200,0.01,2649.9,2648.7,0.55]
[1730907245527,0.8063,2649.5,2648.6,0.7716]
[1730907245685,0.01,2649.3,2648.3,0.7806]
[1730907246033,0.01,2648.8,2647.9,0.8372519]
[1730907246234,0.10438216,2648.8,2647.9,0.0566519]
[1730907246387,0.01,2648.8,2648.0,0.07551083]
[1730907246986,0.10438418,2648.8,2647.9,0.0566519]
[1730907247327,0.01,2648.8,2648.0,0.07551048]
[1730907247529,0.01,2648.8,2647.9,0.0566519]
[1730907247889,0.11438705,2648.8,2647.9,0.0566519]
[1730907248226,0.01,2648.6,2647.9,0.0566519]
[1730907249439,0.02,2648.6,2647.9,0.0566519]
[1730907249815,0.8062,2648.5,2647.6,0.0782881]
[1730907249998,0.10440252,2648.4,2647.6,0.0782881]
[1730907250200,0.10440252,2648.4,2647.7,0.0755222]
[1730907250201,0.01,2648.4,2647.7,0.0755222]
[1730907250790,0.01,2648.4,2647.6,0.0782881]
[1730907250791,0.10440276,2648.4,2647.6,0.0782881]
[1730907251028,0.01,2648.1,2647.6,0.0782881]
[1730907251313,0.7814,2648.0,2647.6,0.0782881]
[1730907251390,0.10442058,2647.9,2647.6,0.0782881]
[1730907251592,0.11442058,2647.9,2647.6,0.0782881]
[1730907252135,0.01,2647.7,2647.6,0.0782881]
[1730907252340,0.02,2647.7,2647.6,0.0782881]
[1730907252631,0.836,2647.7,2647.6,0.0782881]
[1730907252849,8.16286,2647.7,2647.6,0.0782881]
[1730907253000,5.5894028,2647.7,2647.6,0.0782881]
[1730907253329,0.836,2647.7,2647.6,0.0782881]
[1730907253788,0.826,2647.7,2647.6,0.0782881]
[1730907254141,0.836,2647.7,2647.6,0.0782881]
[1730907254546,0.93044179,2647.7,2647.6,0.0782881]
[1730907256212,4.61286,2647.7,2647.6,0.0782881]
[1730907256447,0.93044534,2647.7,2647.6,0.0782881]
[1730907256752,0.826,2647.7,2647.6,0.0782881]
[1730907257262,0.0976,2646.0,2645.7,0.3894925]
[1730907257409,0.09448553,2645.9,2645.1,1.09]
[1730907257607,0.0976,2646.0,2644.9,0.7838]
[1730907257913,0.01,2645.9,2644.9,0.7838]
[1730907258116,0.01,2645.7,2644.4,0.98082939]
[1730907258419,0.8162,2644.5,2643.1,0.19002292]
[1730907258649,0.8062,2644.5,2643.4,0.07564142]
[1730907258857,0.8062,2644.9,2643.7,5.00100544]
[1730907259158,0.02,2645.2,2643.4,0.70499663]
[1730907259159,0.01,2645.6,2644.2,0.8148]
[1730907259452,0.01,2645.6,2644.3,0.58158054]
[1730907259650,0.10450309,2645.6,2644.3,3.58158054]
[1730907260006,0.7837,2645.7,2644.4,0.07560245]
[1730907260325,0.01,2645.6,2644.4,0.55]
[1730907260525,0.01,2645.6,2644.5,0.41315805]
[1730907261023,0.01,2645.6,2644.6,0.07560332]
[1730907261410,0.10450415,2645.6,2644.5,0.41315805]
[1730907261663,0.10450415,2645.6,2644.6,0.07560332]
[1730907261860,0.01,2645.4,2644.7,0.07560332]
[1730907262061,0.01,2645.6,2644.7,0.07560332]
[1730907262215,0.7837,2645.7,2644.7,0.07560332]
[1730907262417,0.7837,2645.7,2644.9,0.8226]
[1730907262654,0.7937,2645.7,2644.9,0.8226]
[1730907262887,0.7937,2645.7,2644.9,1.20486]
[1730907263058,0.7937,2645.7,2645.0,0.07560014]
[1730907263756,0.01,2646.1,2645.0,0.07560017]
[1730907263919,0.7996,2646.2,2645.1,0.55]
[1730907264256,0.01,2646.3,2645.4,0.801]
[1730907264572,0.01,2646.5,2645.4,0.801]
[1730907264716,0.01,2646.5,2645.5,0.55]
[1730907264916,0.7896,2646.6,2645.6,0.07557415]
[1730907265218,0.01,2646.7,2645.9,0.55]
[1730907265523,0.01,2646.8,2645.8,0.815]
[1730907265944,0.01,2646.6,2645.8,0.815]
[1730907266269,0.02,2646.6,2645.8,0.815]
[1730907266516,0.01,2646.1,2645.3,0.8249]
[1730907266727,0.01,2646.3,2645.4,0.62557415]
[1730907266961,0.7586,2646.5,2645.4,0.62557415]
[1730907266962,0.7686,2646.5,2645.4,0.62557415]
[1730907267169,0.01,2646.7,2645.4,5.62657959]
[1730907267320,0.01,2646.7,2645.6,0.55]
[1730907267832,0.02,2647.0,2645.9,3.8028]
[1730907268069,0.02,2647.0,2646.0,0.88038054]
[1730907268226,0.02,2647.0,2645.9,0.8028]
[1730907268227,0.01,2646.7,2645.9,0.8028]
[1730907268573,0.01,2646.7,2646.0,0.07557471]
[1730907268941,0.01,2646.8,2646.0,0.07557471]
[1730907269263,0.11446017,2646.8,2645.9,0.8028]
[1730907269478,0.01,2646.6,2645.9,0.8028]
[1730907269790,0.01,2646.5,2645.9,0.8028]
[1730907270942,0.01,2646.6,2645.9,0.8028]
[1730907271254,0.01,2646.4,2645.3,0.8224]
[1730907271457,0.01,2646.2,2645.3,0.8224]
[1730907271653,0.02,2646.2,2645.3,0.8224]
[1730907272319,0.7991,2646.2,2645.3,0.8224]
[1730907272668,0.02,2646.0,2645.2,0.05670916]
[1730907273721,0.01,2645.6,2645.2,0.05670916]
[1730907274676,0.02,2645.3,2644.3,0.7857]
[1730907274963,0.01,2645.3,2644.4,0.65428155]
[1730907275118,0.02,2645.3,2644.4,0.65428155]
[1730907275491,0.09451371,2645.3,2644.5,0.7857]
[1730907275766,0.09451371,2645.3,2643.6,0.7857]
[1730907275767,0.01,2644.6,2643.6,0.7857]
[1730907276125,0.10453747,2644.6,2643.7,0.87]
[1730907276368,0.01,2644.3,2643.8,0.07563161]
[1730907276600,0.01,2644.4,2643.8,0.07563161]
[1730907276766,0.09453747,2644.6,2643.8,0.07563161]
[1730907277097,0.7644,2644.7,2643.6,0.7857]
[1730907277391,0.7544,2644.7,2643.7,0.07562614]
[1730907277581,0.01,2644.9,2643.8,3.55]
[1730907277785,0.01,2644.7,2643.9,0.86266316]
[1730907278074,0.01,2644.7,2644.0,0.07562468]
[1730907278075,0.7789,2644.6,2644.0,0.07562468]
[1730907278281,0.7889,2644.6,2643.6,0.7857]
[1730907278451,0.01,2644.4,2643.6,0.7857]
[1730907278650,0.01,2644.4,2643.7,0.07563531]
[1730907278965,0.7789,2644.6,2643.7,0.07563531]
[1730907279172,0.7789,2644.9,2643.7,5.07664075]
[1730907279359,0.00589266,2645.0,2644.5,5.00100544]
[1730907279559,0.8296,2645.7,2644.7,0.8053]
[1730907279738,0.8296,2645.7,2644.8,0.07559693]
[1730907279943,0.01,2645.9,2644.8,0.07559693]
[1730907280209,0.8196,2646.0,2645.0,3.0]
[1730907280506,0.8196,2646.0,2644.8,0.46368662]
[1730907280507,0.01,2646.4,2645.4,3.55]
[1730907280644,0.02,2646.4,2645.4,3.0]
[1730907280838,0.02,2646.4,2645.5,0.0755816]
[1730907281116,0.02,2646.4,2645.5,0.8832403]
[1730907281377,0.02,2646.4,2644.8,0.18513115]
[1730907281378,0.01,2645.7,2644.7,0.7973]
[1730907281564,0.02,2645.7,2644.7,0.7973]
[1730907281972,0.01,2645.7,2644.8,0.07559892]
[1730907282277,0.09450224,2645.9,2644.9,0.55]
[1730907282462,0.09450224,2645.9,2645.1,0.55]
[1730907282463,0.01,2645.9,2645.1,0.55]
[1730907282671,0.01,2646.2,2645.2,0.43814467]
[1730907282884,0.8203,2646.3,2645.4,0.7973]
[1730907283049,0.02,2646.6,2645.5,0.62557621]
[1730907283250,0.91477027,2646.7,2645.2,0.3625597]
[1730907283251,0.01,2645.9,2645.2,0.3625597]
[1730907283478,0.02,2646.1,2644.8,0.8025]
[1730907283688,0.02,2645.9,2644.9,0.55]
[1730907283873,0.01,2645.9,2644.9,0.55]
[1730907284073,0.01,2645.9,2645.0,0.07559183]
[1730907284857,0.01,2646.1,2645.1,0.60671529]
[1730907285092,0.01,2646.2,2645.3,0.55]
[1730907285308,0.01,2646.2,2645.4,0.07558014]
[1730907285605,0.09446513,2646.5,2645.6,0.55]